[Event "Early-Titled-Tuesday-Blitz-March-19-2024"]
[Site "Chess.com"]
[Date "2024.03.19"]
[Round "6"]
[White "AlexanderKing"]
[Black "DraningWaterHi"]
[Result "1-0"]
[WhiteElo "2629"]
[BlackElo "2261"]
[TimeControl "180+1"]
[EndTime "9:09:16 PDT"]
[Termination "AlexanderKing won by checkmate"]

1. c4 {[%clk 0:02:59.7]} 1... Nf6 {[%clk 0:02:59.1]} 2. Nc3 {[%clk 0:02:59.9]}
2... g6 {[%clk 0:02:59.1]} 3. d4 {[%clk 0:03:00]} 3... Bg7 {[%clk 0:02:59.5]} 4.
e4 {[%clk 0:03:00.6]} 4... d6 {[%clk 0:02:59.1]} 5. h3 {[%clk 0:03:00.9]} 5...
O-O {[%clk 0:02:59.2]} 6. Be3 {[%clk 0:03:01.6]} 6... c5 {[%clk 0:02:54.1]} 7.
d5 {[%clk 0:03:01.3]} 7... e6 {[%clk 0:02:54.1]} 8. Nf3 {[%clk 0:02:55.1]} 8...
exd5 {[%clk 0:02:45.1]} 9. cxd5 {[%clk 0:02:54.9]} 9... Re8 {[%clk 0:02:44.5]}
10. Qc2 {[%clk 0:02:46.8]} 10... a6 {[%clk 0:02:33.4]} 11. a4 {[%clk 0:02:46.5]}
11... Nbd7 {[%clk 0:02:33.6]} 12. Be2 {[%clk 0:02:45.9]} 12... Ne5 {[%clk
0:02:23.5]} 13. Nd2 {[%clk 0:02:44]} 13... Rb8 {[%clk 0:02:15.6]} 14. O-O {[%clk
0:02:38.5]} 14... Qc7 {[%clk 0:02:11.2]} 15. Rab1 {[%clk 0:02:35.7]} 15... b6
{[%clk 0:01:56.9]} 16. b4 {[%clk 0:02:32.6]} 16... Ned7 {[%clk 0:01:53]} 17. b5
{[%clk 0:02:26.9]} 17... a5 {[%clk 0:01:50]} 18. f4 {[%clk 0:02:15.2]} 18... Bb7
{[%clk 0:01:46.1]} 19. Nc4 {[%clk 0:02:12.1]} 19... Rbd8 {[%clk 0:01:35.7]} 20.
Rbd1 {[%clk 0:02:10.2]} 20... Qb8 {[%clk 0:01:29.9]} 21. Bf2 {[%clk 0:01:55.9]}
21... Ba8 {[%clk 0:01:09.4]} 22. Bg3 {[%clk 0:01:51.7]} 22... Nf8 {[%clk
0:00:18.7]} 23. Kh1 {[%clk 0:01:47.7]} 23... N6d7 {[%clk 0:00:18.6]} 24. Bf3
{[%clk 0:01:35]} 24... f6 {[%clk 0:00:18.2]} 25. Rfe1 {[%clk 0:01:31.4]} 25...
Re7 {[%clk 0:00:17.1]} 26. Re2 {[%clk 0:01:31.5]} 26... Rde8 {[%clk 0:00:17.5]}
27. Rde1 {[%clk 0:01:31.4]} 27... Qc7 {[%clk 0:00:16.6]} 28. Bh2 {[%clk
0:01:30.3]} 28... Qb8 {[%clk 0:00:16.1]} 29. Qd3 {[%clk 0:01:28.2]} 29... Kh8
{[%clk 0:00:15.8]} 30. h4 {[%clk 0:01:16.3]} 30... Kg8 {[%clk 0:00:13.4]} 31. h5
{[%clk 0:01:16]} 31... Kh8 {[%clk 0:00:13.8]} 32. Kg1 {[%clk 0:01:10.4]} 32...
Kg8 {[%clk 0:00:13.8]} 33. Re3 {[%clk 0:01:07.9]} 33... Kh8 {[%clk 0:00:13.4]}
34. R1e2 {[%clk 0:01:08.2]} 34... Kg8 {[%clk 0:00:13.6]} 35. Kf1 {[%clk
0:01:08.7]} 35... Kh8 {[%clk 0:00:13.9]} 36. Ke1 {[%clk 0:01:09.3]} 36... Kg8
{[%clk 0:00:14.3]} 37. Kd1 {[%clk 0:01:10]} 37... Kh8 {[%clk 0:00:14.8]} 38. Kc2
{[%clk 0:01:10.6]} 38... Kg8 {[%clk 0:00:15.3]} 39. Re1 {[%clk 0:01:05.6]} 39...
Kh8 {[%clk 0:00:15.1]} 40. R3e2 {[%clk 0:01:05.8]} 40... Kg8 {[%clk 0:00:15.6]}
41. Bg3 {[%clk 0:00:59.4]} 41... Bb7 {[%clk 0:00:15.6]} 42. Bg4 {[%clk
0:00:50.1]} 42... Bc8 {[%clk 0:00:14.2]} 43. Rh1 {[%clk 0:00:47]} 43... f5
{[%clk 0:00:10.2]} 44. exf5 {[%clk 0:00:42.4]} 44... Rxe2+ {[%clk 0:00:10.3]}
45. Nxe2 {[%clk 0:00:39.8]} 45... Nf6 {[%clk 0:00:10.4]} 46. Bh3 {[%clk
0:00:37]} 46... Nxh5 {[%clk 0:00:10.8]} 47. Bf2 {[%clk 0:00:25.4]} 47... Nf6
{[%clk 0:00:05.8]} 48. fxg6 {[%clk 0:00:23.3]} 48... Nxg6 {[%clk 0:00:06.7]} 49.
Bxc8 {[%clk 0:00:12.7]} 49... Rxc8 {[%clk 0:00:07.6]} 50. Qf3 {[%clk 0:00:08.8]}
50... Re8 {[%clk 0:00:07.2]} 51. Nc3 {[%clk 0:00:06.5]} 51... Qc7 {[%clk
0:00:07]} 52. g4 {[%clk 0:00:06.6]} 52... Nd7 {[%clk 0:00:06.1]} 53. Re1 {[%clk
0:00:05.5]} 53... Rxe1 {[%clk 0:00:05.8]} 54. Bxe1 {[%clk 0:00:06.3]} 54... Ndf8
{[%clk 0:00:06.3]} 55. Ne4 {[%clk 0:00:05.2]} 55... Qb7 {[%clk 0:00:03.9]} 56.
Bc3 {[%clk 0:00:03.4]} 56... Qc7 {[%clk 0:00:04.8]} 57. Bxg7 {[%clk 0:00:03]}
57... Qxg7 {[%clk 0:00:05.7]} 58. f5 {[%clk 0:00:03.3]} 58... Qd4 {[%clk
0:00:06.6]} 59. Ned2 {[%clk 0:00:02.2]} 59... Ne5 {[%clk 0:00:06.3]} 60. Nxe5
{[%clk 0:00:02.7]} 60... dxe5 {[%clk 0:00:07.2]} 61. Qe4 {[%clk 0:00:03.1]}
61... Nd7 {[%clk 0:00:08.1]} 62. Qxd4 {[%clk 0:00:03.6]} 62... exd4 {[%clk
0:00:09]} 63. Kd3 {[%clk 0:00:04.4]} 63... Ne5+ {[%clk 0:00:09.9]} 64. Ke4
{[%clk 0:00:04.8]} 64... Nxg4 {[%clk 0:00:10.8]} 65. d6 {[%clk 0:00:05.4]} 65...
Nf6+ {[%clk 0:00:11.7]} 66. Ke5 {[%clk 0:00:05.8]} 66... Kf7 {[%clk 0:00:12.4]}
67. Nc4 {[%clk 0:00:03.9]} 67... Nd7+ {[%clk 0:00:13.3]} 68. Kd5 {[%clk
0:00:04.2]} 68... d3 {[%clk 0:00:14.2]} 69. Ke4 {[%clk 0:00:04.3]} 69... Nf6+
{[%clk 0:00:14.6]} 70. Kxd3 {[%clk 0:00:04.5]} 70... Ke8 {[%clk 0:00:15.5]} 71.
Nxb6 {[%clk 0:00:03.1]} 71... Nd7 {[%clk 0:00:15.6]} 72. Nc4 {[%clk 0:00:03.5]}
72... h5 {[%clk 0:00:15.8]} 73. Ke4 {[%clk 0:00:03.6]} 73... h4 {[%clk
0:00:16.7]} 74. Kf4 {[%clk 0:00:04.3]} 74... Nf6 {[%clk 0:00:17.6]} 75. Nxa5
{[%clk 0:00:03.5]} 75... Kd7 {[%clk 0:00:17.3]} 76. Nc4 {[%clk 0:00:03.5]} 76...
Nd5+ {[%clk 0:00:17.3]} 77. Kg4 {[%clk 0:00:03.4]} 77... Nc3 {[%clk 0:00:17.8]}
78. Kxh4 {[%clk 0:00:01.9]} 78... Nxa4 {[%clk 0:00:18.2]} 79. f6 {[%clk
0:00:02]} 79... Ke6 {[%clk 0:00:17.8]} 80. Kg5 {[%clk 0:00:02.9]} 80... Kf7
{[%clk 0:00:18.1]} 81. d7 {[%clk 0:00:03.2]} 81... Nc3 {[%clk 0:00:18.3]} 82.
d8=Q {[%clk 0:00:03.7]} 82... Ne4+ {[%clk 0:00:19.2]} 83. Kf4 {[%clk 0:00:03.9]}
83... Nxf6 {[%clk 0:00:19.3]} 84. Ne5+ {[%clk 0:00:04.4]} 84... Ke6 {[%clk
0:00:19.4]} 85. Qc8+ {[%clk 0:00:04.9]} 85... Kd5 {[%clk 0:00:19.8]} 86. Qc6+
{[%clk 0:00:05.5]} 86... Kd4 {[%clk 0:00:19.9]} 87. Qxf6 {[%clk 0:00:05.4]}
87... c4 {[%clk 0:00:20.2]} 88. Qd6+ {[%clk 0:00:06.1]} 88... Kc3 {[%clk
0:00:21.1]} 89. Qc5 {[%clk 0:00:06.4]} 89... Kb2 {[%clk 0:00:22]} 90. Qxc4
{[%clk 0:00:06.7]} 90... Ka3 {[%clk 0:00:22.4]} 91. b6 {[%clk 0:00:06.1]} 91...
Kb2 {[%clk 0:00:23.3]} 92. Qd3 {[%clk 0:00:06.7]} 92... Ka1 {[%clk 0:00:23.8]}
93. Qd2 {[%clk 0:00:06.5]} 93... Kb1 {[%clk 0:00:24.3]} 94. Nc4 {[%clk
0:00:06.7]} 94... Ka1 {[%clk 0:00:25.2]} 95. Qb2# {[%clk 0:00:07.2]} 1-0

[Event "Early-Titled-Tuesday-Blitz-March-19-2024"]
[Site "Chess.com"]
[Date "2024.03.19"]
[Round "6"]
[White "Likvidator228"]
[Black "Sofia_Blokhin"]
[Result "1-0"]
[WhiteElo "2589"]
[BlackElo "2261"]
[TimeControl "180+1"]
[EndTime "9:09:27 PDT"]
[Termination "Likvidator228 won on time"]

1. d4 {[%clk 0:03:00.3]} 1... f5 {[%clk 0:02:58.7]} 2. Nc3 {[%clk 0:02:57.9]}
2... Nf6 {[%clk 0:02:58.4]} 3. Bg5 {[%clk 0:02:57]} 3... g6 {[%clk 0:02:57.1]}
4. h4 {[%clk 0:02:57.1]} 4... h6 {[%clk 0:02:48]} 5. Bxf6 {[%clk 0:02:54.2]}
5... exf6 {[%clk 0:02:48.3]} 6. h5 {[%clk 0:02:53.1]} 6... g5 {[%clk 0:02:48.5]}
7. e3 {[%clk 0:02:51.5]} 7... Bg7 {[%clk 0:02:42.7]} 8. Bd3 {[%clk 0:02:51.2]}
8... d5 {[%clk 0:02:40.1]} 9. Qf3 {[%clk 0:02:51.1]} 9... c6 {[%clk 0:02:25.2]}
10. Bxf5 {[%clk 0:02:50.1]} 10... Bxf5 {[%clk 0:02:23.5]} 11. Qxf5 {[%clk
0:02:51]} 11... Qe7 {[%clk 0:02:21.8]} 12. Nge2 {[%clk 0:02:48.8]} 12... Nd7
{[%clk 0:02:19.2]} 13. O-O-O {[%clk 0:02:25.6]} 13... O-O-O {[%clk 0:02:18.2]}
14. g4 {[%clk 0:02:19.7]} 14... Kb8 {[%clk 0:02:17.2]} 15. Ng3 {[%clk
0:02:19.3]} 15... Nb6 {[%clk 0:02:14]} 16. b3 {[%clk 0:02:02.6]} 16... Qa3+
{[%clk 0:02:11.9]} 17. Kd2 {[%clk 0:01:39]} 17... Bf8 {[%clk 0:02:03.6]} 18. Ke2
{[%clk 0:01:15.3]} 18... Bb4 {[%clk 0:01:58.1]} 19. Qd3 {[%clk 0:01:04.6]} 19...
Qb2 {[%clk 0:01:45.3]} 20. Nb1 {[%clk 0:01:00.7]} 20... Qxa2 {[%clk 0:01:44.6]}
21. Kf1 {[%clk 0:00:55.3]} 21... Rhe8 {[%clk 0:01:30.8]} 22. Kg2 {[%clk
0:00:54]} 22... Bd6 {[%clk 0:01:16]} 23. Nf5 {[%clk 0:00:46.9]} 23... Bc7 {[%clk
0:01:08.3]} 24. Nc3 {[%clk 0:00:35.4]} 24... Qa3 {[%clk 0:01:07.2]} 25. Nxh6
{[%clk 0:00:32.8]} 25... Qe7 {[%clk 0:01:00.7]} 26. Nf5 {[%clk 0:00:32.3]} 26...
Qd7 {[%clk 0:00:57.2]} 27. Ne2 {[%clk 0:00:24.3]} 27... Re4 {[%clk 0:00:56]} 28.
f3 {[%clk 0:00:23.6]} 28... Re6 {[%clk 0:00:52.6]} 29. Neg3 {[%clk 0:00:24.2]}
29... Rde8 {[%clk 0:00:51.1]} 30. Rde1 {[%clk 0:00:24.5]} 30... Bf4 {[%clk
0:00:47.5]} 31. Kf2 {[%clk 0:00:23.3]} 31... Bc7 {[%clk 0:00:43.2]} 32. c4
{[%clk 0:00:23.2]} 32... dxc4 {[%clk 0:00:42.4]} 33. bxc4 {[%clk 0:00:24.1]}
33... c5 {[%clk 0:00:34.3]} 34. d5 {[%clk 0:00:24.1]} 34... Re5 {[%clk
0:00:31.6]} 35. e4 {[%clk 0:00:24.4]} 35... Nc8 {[%clk 0:00:30.4]} 36. h6 {[%clk
0:00:22]} 36... Nd6 {[%clk 0:00:29.4]} 37. Nxd6 {[%clk 0:00:21.8]} 37... Bxd6
{[%clk 0:00:29.3]} 38. h7 {[%clk 0:00:22.1]} 38... Rh8 {[%clk 0:00:28.9]} 39.
Nf5 {[%clk 0:00:20.3]} 39... Bc7 {[%clk 0:00:24]} 40. Rh6 {[%clk 0:00:19]} 40...
Rxh7 {[%clk 0:00:23.2]} 41. Reh1 {[%clk 0:00:19.1]} 41... Rxh6 {[%clk
0:00:12.9]} 42. Rxh6 {[%clk 0:00:19.1]} 42... Qd8 {[%clk 0:00:10.4]} 43. d6
{[%clk 0:00:18.3]} 43... Ba5 {[%clk 0:00:09.4]} 44. Rh7 {[%clk 0:00:10.6]} 44...
a6 {[%clk 0:00:09.5]} 45. Qf1 {[%clk 0:00:08.5]} 45... Bb6 {[%clk 0:00:07.7]}
46. Qb1 {[%clk 0:00:08.2]} 46... Rxf5 {[%clk 0:00:07.3]} 47. gxf5 {[%clk
0:00:05.7]} 47... Qxd6 {[%clk 0:00:07.5]} 48. Qe1 {[%clk 0:00:05.3]} 48... Qd4+
{[%clk 0:00:07.3]} 49. Qe3 {[%clk 0:00:05.4]} 49... Qb2+ {[%clk 0:00:06.5]} 50.
Kg3 {[%clk 0:00:05]} 50... Qe5+ {[%clk 0:00:06.6]} 51. Kh3 {[%clk 0:00:05.5]}
51... Bc7 {[%clk 0:00:06.5]} 52. Qf2 {[%clk 0:00:05]} 52... Qf4 {[%clk
0:00:05.9]} 53. Rf7 {[%clk 0:00:04.2]} 53... g4+ {[%clk 0:00:05.9]} 54. Kg2
{[%clk 0:00:03.3]} 54... Qh2+ {[%clk 0:00:04.6]} 55. Kf1 {[%clk 0:00:03.7]}
55... Qh1+ {[%clk 0:00:03.5]} 56. Ke2 {[%clk 0:00:04.2]} 56... gxf3+ {[%clk
0:00:03]} 57. Qxf3 {[%clk 0:00:04.8]} 57... Qh2+ {[%clk 0:00:03.2]} 58. Qf2
{[%clk 0:00:05.4]} 58... Qh5+ {[%clk 0:00:02.7]} 59. Qf3 {[%clk 0:00:05.8]}
59... Qxf7 {[%clk 0:00:03.6]} 60. Kd3 {[%clk 0:00:06.1]} 60... Qd7+ {[%clk
0:00:03.5]} 61. Kc2 {[%clk 0:00:06.8]} 61... Qf7 {[%clk 0:00:04.1]} 62. Qd3
{[%clk 0:00:06.8]} 62... Qe8 {[%clk 0:00:04.2]} 63. Qe3 {[%clk 0:00:06.3]} 63...
Bb6 {[%clk 0:00:04.5]} 64. Kb3 {[%clk 0:00:06.4]} 64... Ka7 {[%clk 0:00:05]} 65.
Qf4 {[%clk 0:00:06.7]} 65... a5 {[%clk 0:00:05.1]} 66. Qd6 {[%clk 0:00:06.7]}
66... a4+ {[%clk 0:00:05.5]} 67. Ka3 {[%clk 0:00:06.8]} 67... Qc6 {[%clk
0:00:06]} 68. Qe7 {[%clk 0:00:04.8]} 68... Qc7 {[%clk 0:00:05.9]} 69. Qe6 {[%clk
0:00:04.2]} 69... Qg3+ {[%clk 0:00:06.3]} 70. Kxa4 {[%clk 0:00:04.5]} 70... Qe1
{[%clk 0:00:05.8]} 71. Kb3 {[%clk 0:00:04.5]} 71... Qb4+ {[%clk 0:00:05.9]} 72.
Kc2 {[%clk 0:00:04.7]} 72... Qa4+ {[%clk 0:00:06.4]} 73. Kd3 {[%clk 0:00:05.2]}
73... Qb3+ {[%clk 0:00:06.4]} 74. Ke2 {[%clk 0:00:05.8]} 74... Qc2+ {[%clk
0:00:06.7]} 75. Kf3 {[%clk 0:00:06.4]} 75... Qd3+ {[%clk 0:00:06.8]} 76. Kf4
{[%clk 0:00:06.8]} 76... Qf1+ {[%clk 0:00:06.3]} 77. Kg4 {[%clk 0:00:07.3]}
77... Qg2+ {[%clk 0:00:06.5]} 78. Kh5 {[%clk 0:00:07.8]} 78... Qh3+ {[%clk
0:00:06.5]} 79. Kg6 {[%clk 0:00:08.2]} 79... Qh4 {[%clk 0:00:06.2]} 80. Kf7
{[%clk 0:00:08.6]} 80... Qh7+ {[%clk 0:00:06]} 81. Kxf6 {[%clk 0:00:08.7]} 81...
Bd8+ {[%clk 0:00:06.1]} 82. Ke5 {[%clk 0:00:09.3]} 82... Qc7+ {[%clk 0:00:05.8]}
83. Kd5 {[%clk 0:00:08]} 83... Bg5 {[%clk 0:00:04.1]} 84. e5 {[%clk 0:00:08.3]}
84... Qd8+ {[%clk 0:00:04.2]} 85. Qd6 {[%clk 0:00:08.4]} 85... Qg8+ {[%clk
0:00:03.7]} 86. e6 {[%clk 0:00:08.5]} 86... Qh7 {[%clk 0:00:02.6]} 87. Qxc5+
{[%clk 0:00:08.9]} 87... Kb8 {[%clk 0:00:02.7]} 88. Qf8+ {[%clk 0:00:09.4]}
88... Ka7 {[%clk 0:00:02.9]} 89. Qa3+ {[%clk 0:00:10]} 89... Kb8 {[%clk
0:00:03.2]} 90. Qg3+ {[%clk 0:00:10.7]} 90... Ka7 {[%clk 0:00:02]} 91. Qxg5
{[%clk 0:00:11.3]} 91... Qc7 {[%clk 0:00:01.3]} 92. Qe3+ {[%clk 0:00:10.6]}
92... Kb8 {[%clk 0:00:01.3]} 93. Qc5 {[%clk 0:00:11.2]} 93... Qd8+ {[%clk
0:00:01.1]} 94. Qd6+ {[%clk 0:00:11.8]} 94... Qxd6+ {[%clk 0:00:01.5]} 95. Kxd6
{[%clk 0:00:12.7]} 1-0

[Event "Early-Titled-Tuesday-Blitz-March-19-2024"]
[Site "Chess.com"]
[Date "2024.03.19"]
[Round "6"]
[White "Andrei_Skvortsov"]
[Black "TitarovVasiliYouTube"]
[Result "1-0"]
[WhiteElo "2742"]
[BlackElo "2543"]
[TimeControl "180+1"]
[EndTime "9:09:49 PDT"]
[Termination "Andrei_Skvortsov won on time"]

1. e4 {[%clk 0:03:00.9]} 1... c5 {[%clk 0:02:59.9]} 2. d4 {[%clk 0:03:01.2]}
2... cxd4 {[%clk 0:02:59]} 3. Qxd4 {[%clk 0:03:02.1]} 3... Nc6 {[%clk
0:02:57.3]} 4. Qd3 {[%clk 0:03:03]} 4... Nf6 {[%clk 0:02:57.4]} 5. Nc3 {[%clk
0:03:03.4]} 5... g6 {[%clk 0:02:56.8]} 6. Nf3 {[%clk 0:03:03.4]} 6... d6 {[%clk
0:02:56.6]} 7. Be2 {[%clk 0:03:04]} 7... Bg7 {[%clk 0:02:57]} 8. O-O {[%clk
0:03:04.6]} 8... O-O {[%clk 0:02:57.7]} 9. Nd5 {[%clk 0:03:05.2]} 9... Nd7
{[%clk 0:02:41]} 10. c3 {[%clk 0:03:04.4]} 10... Nc5 {[%clk 0:02:21.9]} 11. Qc2
{[%clk 0:03:02.6]} 11... Be6 {[%clk 0:02:18.7]} 12. Be3 {[%clk 0:02:37.2]} 12...
Rc8 {[%clk 0:02:13.6]} 13. Rad1 {[%clk 0:02:25.8]} 13... Nd7 {[%clk 0:02:13.4]}
14. Qa4 {[%clk 0:02:18.7]} 14... a6 {[%clk 0:02:07.4]} 15. Ng5 {[%clk
0:02:16.6]} 15... Bxd5 {[%clk 0:02:04.2]} 16. exd5 {[%clk 0:02:15.9]} 16... Ncb8
{[%clk 0:01:59]} 17. Nf3 {[%clk 0:02:09]} 17... Nc5 {[%clk 0:01:58.2]} 18. Qh4
{[%clk 0:02:08.4]} 18... Nbd7 {[%clk 0:01:52.5]} 19. Ng5 {[%clk 0:02:05.7]}
19... Nf6 {[%clk 0:01:50.8]} 20. Qb4 {[%clk 0:01:58.6]} 20... b5 {[%clk
0:01:30.6]} 21. Rfe1 {[%clk 0:01:49.4]} 21... Qc7 {[%clk 0:01:24.4]} 22. Bf1
{[%clk 0:01:40.6]} 22... Qb7 {[%clk 0:01:22.2]} 23. Qh4 {[%clk 0:01:39.2]} 23...
Ncd7 {[%clk 0:01:05]} 24. Ne4 {[%clk 0:01:29.1]} 24... Nxd5 {[%clk 0:00:58.2]}
25. Rxd5 {[%clk 0:01:11.8]} 25... Qxd5 {[%clk 0:00:58.1]} 26. Qxe7 {[%clk
0:01:12.4]} 26... Rfe8 {[%clk 0:00:19.7]} 27. Qxd7 {[%clk 0:01:09.5]} 27... Qxe4
{[%clk 0:00:20.2]} 28. Bd2 {[%clk 0:01:06.9]} 28... Qa8 {[%clk 0:00:20.2]} 29.
Qxd6 {[%clk 0:00:54.9]} 29... Rxe1 {[%clk 0:00:20.1]} 30. Bxe1 {[%clk
0:00:54.3]} 30... Rd8 {[%clk 0:00:21]} 31. Qf4 {[%clk 0:00:47.5]} 31... Rd1
{[%clk 0:00:20.9]} 32. Qe3 {[%clk 0:00:47.5]} 32... Qd8 {[%clk 0:00:20.1]} 33.
c4 {[%clk 0:00:36.5]} 33... Bxb2 {[%clk 0:00:14.9]} 34. cxb5 {[%clk 0:00:36.3]}
34... axb5 {[%clk 0:00:15.8]} 35. Qe2 {[%clk 0:00:27.5]} 35... Bg7 {[%clk
0:00:12]} 36. Bb4 {[%clk 0:00:26]} 36... h5 {[%clk 0:00:09.8]} 37. Qxb5 {[%clk
0:00:20.5]} 37... Rb1 {[%clk 0:00:10.5]} 38. a3 {[%clk 0:00:19.9]} 38... Bc3
{[%clk 0:00:07.8]} 39. Qc4 {[%clk 0:00:17.7]} 39... Bxb4 {[%clk 0:00:08.1]} 40.
axb4 {[%clk 0:00:18.6]} 40... Kg7 {[%clk 0:00:04.9]} 41. g3 {[%clk 0:00:16.1]}
41... Qf6 {[%clk 0:00:05.3]} 42. Kg2 {[%clk 0:00:11.5]} 42... Rb2 {[%clk
0:00:06]} 43. Qc5 {[%clk 0:00:11.4]} 43... h4 {[%clk 0:00:04.9]} 44. gxh4 {[%clk
0:00:09.9]} 44... Qxh4 {[%clk 0:00:01.9]} 45. b5 {[%clk 0:00:09.3]} 45... Qf6
{[%clk 0:00:01.5]} 46. h3 {[%clk 0:00:07.4]} 46... Rb1 {[%clk 0:00:01.9]} 47.
Bd3 {[%clk 0:00:07.1]} 47... Rb2 {[%clk 0:00:02.7]} 48. Be4 {[%clk 0:00:07.2]}
48... Ra2 {[%clk 0:00:02.3]} 49. Bc6 {[%clk 0:00:07.3]} 49... Rb2 {[%clk
0:00:02.5]} 50. Qe3 {[%clk 0:00:07.4]} 50... Qe6 {[%clk 0:00:01.5]} 51. Qd4+
{[%clk 0:00:07]} 51... Qf6 {[%clk 0:00:02.4]} 52. Qe3 {[%clk 0:00:06.8]} 52...
Rb1 {[%clk 0:00:02.6]} 53. Qd3 {[%clk 0:00:06.1]} 53... Qg5+ {[%clk 0:00:02.2]}
54. Qg3 {[%clk 0:00:04.8]} 54... Qxg3+ {[%clk 0:00:02.5]} 55. Kxg3 {[%clk
0:00:05.7]} 55... Kf6 {[%clk 0:00:03]} 56. Kf3 {[%clk 0:00:06.2]} 56... Ke5
{[%clk 0:00:03.5]} 57. Ke3 {[%clk 0:00:06.7]} 57... Rb3+ {[%clk 0:00:04.2]} 58.
Kd2 {[%clk 0:00:06.5]} 58... f5 {[%clk 0:00:05.1]} 59. h4 {[%clk 0:00:03.7]}
59... Kd6 {[%clk 0:00:04.5]} 60. Ke2 {[%clk 0:00:03.2]} 60... Rh3 {[%clk
0:00:04.5]} 61. Be8 {[%clk 0:00:03.7]} 61... Rxh4 {[%clk 0:00:04.5]} 62. Bxg6
{[%clk 0:00:03.3]} 62... Ke5 {[%clk 0:00:04.5]} 63. Be8 {[%clk 0:00:03]} 63...
Rb4 {[%clk 0:00:05.2]} 64. Bc6 {[%clk 0:00:03.5]} 64... Kd4 {[%clk 0:00:04.9]}
65. Ke1 {[%clk 0:00:03.8]} 65... Rb2 {[%clk 0:00:05.2]} 66. Kf1 {[%clk
0:00:03.8]} 66... Ke5 {[%clk 0:00:05.2]} 67. Kg2 {[%clk 0:00:04.2]} 67... Kf4
{[%clk 0:00:05.6]} 68. Kg1 {[%clk 0:00:04.7]} 68... Kg4 {[%clk 0:00:05.9]} 69.
Kg2 {[%clk 0:00:05]} 69... Kf4 {[%clk 0:00:06.2]} 70. Kg1 {[%clk 0:00:05.3]}
70... Ke5 {[%clk 0:00:06.9]} 71. Kg2 {[%clk 0:00:05.8]} 71... Rb3 {[%clk
0:00:06.8]} 72. Kf1 {[%clk 0:00:05.7]} 72... Kd4 {[%clk 0:00:07.1]} 73. Kg2
{[%clk 0:00:05.8]} 73... Rd3 {[%clk 0:00:05.4]} 74. Bd7 {[%clk 0:00:05.2]} 74...
Ke5 {[%clk 0:00:04.7]} 75. Bc6 {[%clk 0:00:05.7]} 75... Rb3 {[%clk 0:00:04.7]}
76. Kf1 {[%clk 0:00:05.6]} 76... Rb1+ {[%clk 0:00:04.5]} 77. Ke2 {[%clk
0:00:06]} 77... Kd4 {[%clk 0:00:04.8]} 78. Kf3 {[%clk 0:00:06.3]} 78... Ke5
{[%clk 0:00:04.4]} 79. Ke2 {[%clk 0:00:06.2]} 79... f4 {[%clk 0:00:05]} 80. Kf3
{[%clk 0:00:06.6]} 80... Rb3+ {[%clk 0:00:05.3]} 81. Kg4 {[%clk 0:00:06.5]}
81... Rb2 {[%clk 0:00:04.1]} 82. Kf3 {[%clk 0:00:06.9]} 82... Rc2 {[%clk
0:00:04.5]} 83. Kg2 {[%clk 0:00:07.1]} 83... Kf5 {[%clk 0:00:03.6]} 84. Kf3
{[%clk 0:00:07.3]} 84... Rc3+ {[%clk 0:00:03.5]} 85. Ke2 {[%clk 0:00:07.5]}
85... Kg4 {[%clk 0:00:03.5]} 86. f3+ {[%clk 0:00:07.3]} 86... Kg3 {[%clk
0:00:03.4]} 87. Kd2 {[%clk 0:00:07.8]} 87... Rb3 {[%clk 0:00:02.9]} 88. Kc2
{[%clk 0:00:08]} 88... Rb4 {[%clk 0:00:03]} 89. Kc3 {[%clk 0:00:08.6]} 89... Rb1
{[%clk 0:00:03.3]} 90. Kc4 {[%clk 0:00:09.2]} 90... Kf2 {[%clk 0:00:02.6]} 91.
Kc5 {[%clk 0:00:09.1]} 91... Rc1+ {[%clk 0:00:02.6]} 92. Kd6 {[%clk 0:00:09.3]}
92... Rb1 {[%clk 0:00:02.1]} 93. Kc7 {[%clk 0:00:09.3]} 1-0

[Event "Early-Titled-Tuesday-Blitz-March-19-2024"]
[Site "Chess.com"]
[Date "2024.03.19"]
[Round "7"]
[White "NovakRatko"]
[Black "Shuvalov"]
[Result "0-1"]
[WhiteElo "2407"]
[BlackElo "2570"]
[TimeControl "180+1"]
[EndTime "9:13:59 PDT"]
[Termination "Shuvalov won by resignation"]

1. d4 {[%clk 0:02:59.4]} 1... Nf6 {[%clk 0:02:59.6]} 2. c4 {[%clk 0:02:59.8]}
2... g6 {[%clk 0:02:59.8]} 3. Nc3 {[%clk 0:02:59.7]} 3... d5 {[%clk 0:02:59.9]}
4. f3 {[%clk 0:03:00]} 4... c5 {[%clk 0:02:57.2]} 5. dxc5 {[%clk 0:03:00.4]}
5... d4 {[%clk 0:02:57.1]} 6. Na4 {[%clk 0:03:01]} 6... e5 {[%clk 0:02:52.2]} 7.
a3 {[%clk 0:03:00.7]} 7... Nc6 {[%clk 0:02:43.9]} 8. b4 {[%clk 0:02:59.7]} 8...
Bg7 {[%clk 0:02:42.6]} 9. Bg5 {[%clk 0:02:59]} 9... h6 {[%clk 0:02:41.2]} 10.
Bh4 {[%clk 0:02:59.1]} 10... O-O {[%clk 0:02:38.4]} 11. e4 {[%clk 0:02:54.6]}
11... dxe3 {[%clk 0:02:35.8]} 12. Qxd8 {[%clk 0:02:54.2]} 12... Rxd8 {[%clk
0:02:35.4]} 13. Ne2 {[%clk 0:02:35.4]} 13... Nd4 {[%clk 0:02:26.8]} 14. O-O-O
{[%clk 0:02:33.1]} 14... Nb3+ {[%clk 0:02:17.4]} 15. Kc2 {[%clk 0:02:31.6]}
15... Bf5+ {[%clk 0:02:17.5]} 16. Kxb3 {[%clk 0:02:28.9]} 16... Rxd1 {[%clk
0:02:17.5]} 17. Nec3 {[%clk 0:02:28.2]} 17... Rd2 {[%clk 0:02:10.2]} 18. g3
{[%clk 0:02:27.9]} 18... Bc2+ {[%clk 0:02:09.3]} 0-1

[Event "Early-Titled-Tuesday-Blitz-March-19-2024"]
[Site "Chess.com"]
[Date "2024.03.19"]
[Round "7"]
[White "Shahdad2007"]
[Black "Sattarov_Bobur"]
[Result "0-1"]
[WhiteElo "2605"]
[BlackElo "2831"]
[TimeControl "180+1"]
[EndTime "9:14:09 PDT"]
[Termination "Sattarov_Bobur won by resignation"]

1. e4 {[%clk 0:02:48.4]} 1... e5 {[%clk 0:03:00.2]} 2. Nf3 {[%clk 0:02:41.8]}
2... Nc6 {[%clk 0:03:00.7]} 3. Bc4 {[%clk 0:02:37.2]} 3... Bc5 {[%clk
0:03:00.4]} 4. c3 {[%clk 0:02:36.6]} 4... Qf6 {[%clk 0:03:00.5]} 5. O-O {[%clk
0:01:46.3]} 5... Nge7 {[%clk 0:02:57.6]} 6. d4 {[%clk 0:01:34.7]} 6... exd4
{[%clk 0:02:58.5]} 7. Bg5 {[%clk 0:01:34.7]} 7... Qg6 {[%clk 0:02:58.6]} 8. cxd4
{[%clk 0:01:33.6]} 8... Nxd4 {[%clk 0:02:58.3]} 9. Nxd4 {[%clk 0:01:31.8]} 9...
Qxg5 {[%clk 0:02:58.6]} 10. f4 {[%clk 0:01:18.9]} 10... Qf6 {[%clk 0:02:55.9]}
0-1